fUST/lending_fUST_20250926
["ID","MTS","AMOUNT","RATE_DAILY","PERIOD"]
[387739318,1758834633116,-480.0,0.00019178,2]
[387739320,1758834633126,-480.0,0.00019178,2]
[387739322,1758834633135,-4824.96,0.00019178,2]
[387739324,1758834633145,-608.45,0.00019178,2]
[387739326,1758834633155,-881.18,0.00019178,2]
[387739328,1758834633164,-648.52,0.00019178,2]
[387739330,1758834633174,-493.22,0.00019178,2]
[387739332,1758834633184,-611.86815062,0.00019178,2]
[387739334,1758834633194,-545.88,0.00019178,2]
[387739336,1758834633204,-480.0,0.00019178,2]
[387739338,1758834633214,-480.0,0.00019178,2]
[387739340,1758834633224,-238.2791203,0.00019178,2]
[387739352,1758834633333,-480.0,0.00019178,2]
[387739354,1758834633343,-489.86235032,0.00019178,2]
[387739356,1758834633353,-480.0,0.00019178,2]
[387739358,1758834633363,-480.0,0.00019178,2]
[387739360,1758834633374,-905.45,0.00019178,2]
[387739362,1758834633384,-480.0,0.00019178,2]
[387739364,1758834633394,-480.0,0.00019178,2]
[387739366,1758834633404,-480.0,0.00019178,2]
[387739368,1758834633415,-1188.85,0.00019178,2]
[387739370,1758834633425,-480.0,0.00019178,2]
[387739372,1758834633435,-487.9785182,0.00019178,2]
[387739374,1758834633445,-480.0,0.00019178,2]
[387739376,1758834633456,-480.0,0.00019178,2]
[387739378,1758834633466,-480.0,0.00019178,2]
[387739380,1758834633476,-480.0,0.00019178,2]
[387739382,1758834633487,-480.0,0.00019178,2]
[387739384,1758834633496,-480.0,0.00019178,2]
[387739386,1758834633506,-480.0,0.00019178,2]
[387739388,1758834633516,-480.0,0.00019178,2]
[387739390,1758834633527,-584.98,0.00019178,2]
[387739392,1758834633537,-480.0,0.00019178,2]
[387739394,1758834633547,-480.0,0.00019178,2]
[387739396,1758834633556,-480.0,0.00019178,2]
[387739398,1758834633566,-480.0,0.00019178,2]
[387739400,1758834633576,-480.0,0.00019178,2]
[387739402,1758834633586,-480.0,0.00019178,2]
[387739404,1758834633596,-480.0,0.00019178,2]
[387739406,1758834633605,-480.0,0.00019178,2]
[387739408,1758834633615,-480.0,0.00019178,2]
[387739410,1758834633624,-480.73581186,0.00019178,2]
[387739412,1758834633634,-584.77,0.00019178,2]
[387739414,1758834633644,-2838.47,0.00019178,2]
[387739416,1758834633654,-487.38600145,0.00019178,2]
[387739418,1758834633664,-480.0,0.00019178,2]
[387739420,1758834633674,-526.94837558,0.00019178,2]
[387739422,1758834633685,-480.0,0.00019178,2]
[387739424,1758834633696,-480.0,0.00019178,2]
[387739426,1758834633709,-480.0,0.00019178,2]
[387739428,1758834633719,-480.0,0.00019178,2]
[387739430,1758834633729,-483.51,0.00019178,2]
[387739431,1758834633739,-480.0,0.00019178,2]
[387739433,1758834633748,-480.0,0.00019178,2]
[387739434,1758834633757,-480.0,0.00019178,2]
[387739436,1758834633767,-481.03890012,0.00019178,2]
[387739438,1758834633778,-480.0,0.00019178,2]
[387739440,1758834633788,-480.0,0.00019178,2]
[387739442,1758834633797,-480.0,0.00019178,2]
[387739444,1758834633806,-480.0,0.00019178,2]
[387739446,1758834633815,-480.0,0.00019178,2]
[387739448,1758834633825,-502.89,0.00019178,2]
[387739450,1758834633835,-480.0,0.00019178,2]
[387739452,1758834633846,-480.0,0.00019178,2]
[387739454,1758834633856,-480.0,0.00019178,2]
[387739456,1758834633866,-555.71,0.00019178,2]
[387739457,1758834633876,-480.0,0.00019178,2]
[387739459,1758834633886,-480.0,0.00019178,2]
[387739461,1758834633895,-480.0,0.00019178,2]
[387739463,1758834633905,-481.77557062,0.00019178,2]
[387739465,1758834633915,-480.0,0.00019178,2]
[387739467,1758834633924,-1055.55,0.00019178,2]
[387739469,1758834633935,-865.24,0.00019178,2]
[387739471,1758834633944,-480.0,0.00019178,2]
[387739473,1758834633954,-495.0,0.00019178,2]
[387739475,1758834633964,-480.0,0.00019178,2]
[387739477,1758834633974,-480.0,0.00019178,2]
[387739479,1758834633984,-480.0,0.00019178,2]
[387739480,1758834633994,-484.53084826,0.00019178,2]
[387739482,1758834634004,-480.0,0.00019178,2]
[387739484,1758834634014,-334.38678493,0.00019178,2]
[387739487,1758834634032,-145.61321507,0.00019178,2]
[387739489,1758834634042,-480.0,0.00019178,2]
[387739491,1758834634053,-177.04216966,0.00019178,2]
[387739796,1758834642403,-28.12951471,0.00019178,2]
[387739797,1758834642415,-274.82831563,0.00019178,2]
[387739798,1758834642424,-480.0,0.00019178,2]
[387739799,1758834642433,-480.0,0.00019178,2]
[387739800,1758834642443,-480.0,0.00019178,2]
[387739801,1758834642452,-480.0,0.00019178,2]
[387739802,1758834642461,-480.0,0.00019178,2]
[387739803,1758834642470,-480.0,0.00019178,2]
[387739804,1758834642481,-480.0,0.00019178,2]
[387739805,1758834642490,-486.92748809,0.00019178,2]
[387739806,1758834642499,-636.74419628,0.00019178,2]
[387739807,1758834642514,-668.22580372,0.00019178,2]
[387739808,1758834642523,-480.0,0.00019178,2]
[387739809,1758834642533,-480.0,0.00019178,2]
[387739810,1758834642542,-480.0,0.00019178,2]
[387739811,1758834642551,-590.27,0.00019178,2]
[387739812,1758834642560,-480.0,0.00019178,2]
[387739813,1758834642569,-480.0,0.00019178,2]
[387739814,1758834642578,-567.0,0.00019178,2]
[387739815,1758834642587,-1000.0,0.00019178,2]
[387739817,1758834642596,-480.0,0.00019178,2]
[387739819,1758834642605,-480.0,0.00019178,2]
[387739821,1758834642615,-480.0,0.00019179,2]
[387739823,1758834642624,-480.0,0.00019179,2]
[387739825,1758834642634,-531.01140285,0.00019179,2]
[387739827,1758834642644,-480.0,0.00019179,2]
[387739829,1758834642653,-480.0,0.00019179,2]
[387739831,1758834642662,-480.0,0.00019179,2]
[387739833,1758834642672,-480.0,0.00019179,2]
[387739835,1758834642681,-480.0,0.00019179,2]
[387739837,1758834642690,-668.28,0.00019179,2]
[387739839,1758834642703,-480.0,0.00019179,2]
[387739841,1758834642713,-480.0,0.00019179,2]
[387739850,1758834642790,-480.0,0.00019179,2]
[387739852,1758834642802,-480.0,0.00019179,2]
[387739854,1758834642812,-1000.19997361,0.00019179,2]
[387739856,1758834642821,-480.0,0.00019179,2]
[387739858,1758834642830,-500.0,0.00019179,2]
[387739860,1758834642840,-508.39839995,0.00019179,2]
[387739862,1758834642850,-500.0,0.00019179,2]
[387739864,1758834642859,-757.73,0.00019179,2]
[387739866,1758834642868,-518.39,0.00019179,2]
[387739868,1758834642878,-480.0,0.00019179,2]
[387739870,1758834642888,-480.0,0.00019179,2]
[387739872,1758834642897,-480.0,0.00019179,2]
[387739874,1758834642907,-874.33,0.00019179,2]
[387739876,1758834642916,-1280.01,0.00019179,2]
[387739878,1758834642925,-480.0,0.00019179,2]
[387739880,1758834642935,-480.0,0.00019179,2]
[387739882,1758834642947,-1202.42,0.00019179,2]
[387739884,1758834642957,-480.0,0.00019179,2]
[387739886,1758834642966,-480.0,0.00019179,2]
[387739888,1758834642976,-2857.31,0.00019179,2]
[387739890,1758834642985,-493.22,0.00019179,2]
[387739892,1758834642995,-480.0,0.00019179,2]
[387739894,1758834643004,-645.47942398,0.00019179,2]
[387739897,1758834643018,-867.15057602,0.00019179,2]
[387739899,1758834643028,-250.59226081,0.00019179,2]
[387739901,1758834643038,-229.40773919,0.00019179,2]
[387739903,1758834643048,-186.49024702,0.00019179,2]
[387739972,1758834643708,-480.0,0.00019178,2]
[387739974,1758834643718,-7.70574438,0.00019179,2]
[387739976,1758834643728,-480.0,0.00019179,2]
[387739978,1758834643738,-480.0,0.00019179,2]
[387739980,1758834643749,-480.0,0.00019179,2]
[387739982,1758834643758,-480.0,0.00019179,2]
[387739984,1758834643767,-2411.58,0.00019179,2]
[387739986,1758834643777,-480.0,0.00019179,2]
[387739988,1758834643787,-480.0,0.00019179,2]
[387739990,1758834643796,-480.0,0.00019179,2]
[387739992,1758834643805,-480.0,0.0001918,2]
[387739994,1758834643814,-480.0,0.0001918,2]
[387739996,1758834643824,-480.0,0.0001918,2]
[387739998,1758834643833,-480.0,0.0001918,2]
[387740000,1758834643843,-480.0,0.0001918,2]
[387740002,1758834643852,-480.0,0.0001918,2]
[387740004,1758834643861,-480.0,0.0001918,2]
[387740006,1758834643871,-480.0,0.0001918,2]
[387740008,1758834643880,-480.0,0.0001918,2]
[387740010,1758834643890,-207.92146297,0.0001918,2]
[387740012,1758834643899,-480.0,0.0001918,2]
[387740014,1758834643908,-436.70589631,0.0001918,2]
[387740016,1758834643918,-480.0,0.0001918,2]
[387740018,1758834643927,-1502.1,0.0001918,2]
[387740020,1758834643936,-480.0,0.0001918,2]
[387740022,1758834643947,-480.0,0.0001918,2]
[387740024,1758834643957,-480.0,0.0001918,2]
[387740026,1758834643966,-213.35270535,0.0001918,2]
[387740028,1758834643976,-480.0,0.0001918,2]
[387740030,1758834643990,-480.0,0.0001918,2]
[387740032,1758834644000,-480.0,0.0001918,2]
[387740034,1758834644010,-480.0,0.0001918,2]
[387740036,1758834644019,-480.0,0.0001918,2]
[387740038,1758834644028,-480.0,0.0001918,2]
[387740040,1758834644038,-403.48553316,0.0001918,2]
[387740042,1758834644047,-480.0,0.0001918,2]
[387740044,1758834644056,-505.96665422,0.0001918,2]
[387740046,1758834644066,-199.58268803,0.0001918,2]
[387740049,1758834644086,-280.41731197,0.0001918,2]
[387740051,1758834644096,-480.0,0.0001918,2]
[387740054,1758834644106,-521.76730016,0.0001918,2]
[387740055,1758834644116,-480.0,0.0001918,2]
[387740058,1758834644126,-491.67401849,0.0001918,2]
[387740060,1758834644135,-480.0,0.0001918,2]
[387740061,1758834644145,-480.0,0.0001918,2]
[387740063,1758834644155,-585.9855968,0.0001918,2]
[387740065,1758834644165,-480.0,0.0001918,2]
[387740067,1758834644176,-480.0,0.0001918,2]
[387740069,1758834644185,-480.0,0.0001918,2]
[387740071,1758834644196,-480.0,0.0001918,2]
[387740073,1758834644205,-328.96579692,0.0001918,2]
[387740317,1758834646627,-844.46,0.00019178,2]
[387740319,1758834646637,-151.03420308,0.0001918,2]
[387740321,1758834646647,-481.08281569,0.0001918,2]
[387740323,1758834646656,-480.0,0.0001918,2]
[387740325,1758834646665,-500.0,0.0001918,2]
[387740327,1758834646675,-482.7519075,0.0001918,2]
[387740329,1758834646685,-480.0,0.0001918,2]
[387740331,1758834646695,-259.37439466,0.0001918,2]
[387740333,1758834646707,-4525.77,0.0001918,2]
[387740335,1758834646716,-820.61,0.0001918,2]
[387740337,1758834646726,-480.0,0.00019181,2]
[387740339,1758834646735,-480.0,0.00019181,2]
[387740341,1758834646745,-272.92370178,0.00019181,2]
[387740344,1758834646757,-207.07629822,0.00019181,2]
[387740346,1758834646766,-480.0,0.00019181,2]
[387740348,1758834646775,-480.0,0.00019181,2]
[387740350,1758834646786,-480.0,0.00019181,2]
[387740352,1758834646797,-166.33570396,0.00019181,2]
[387740354,1758834646806,-480.0,0.00019181,2]
[387740356,1758834646816,-480.0,0.00019181,2]
[387740358,1758834646825,-480.0,0.00019181,2]
[387740360,1758834646834,-480.0,0.00019181,2]
[387740362,1758834646843,-480.0,0.00019181,2]
[387740364,1758834646853,-480.0,0.00019181,2]
[387740366,1758834646862,-480.0,0.00019181,2]
[387740368,1758834646872,-480.0,0.00019181,2]
[387740370,1758834646881,-417.69135755,0.00019181,2]
[387740372,1758834646893,-77.24899913,0.00019181,2]
[387740374,1758834646903,-530.59,0.00019181,2]
[387740376,1758834646911,-480.0,0.00019181,2]
[387740378,1758834646921,-545.65,0.00019181,2]
[387740380,1758834646931,-2085.25,0.00019181,2]
[387740382,1758834646941,-1208.18,0.00019181,2]
[387740384,1758834646951,-480.0,0.00019181,2]
[387740386,1758834646960,-352.6049288,0.00019182,2]
[387740388,1758834646969,-1052.91,0.00019182,2]
[387740398,1758834647053,-480.0,0.00019182,2]
[387740400,1758834647063,-500.0,0.00019183,2]
[387740403,1758834647073,-152.22551564,0.00019184,2]
[387740405,1758834647082,-151.0,0.00019184,2]
[387740407,1758834647092,-151.0,0.00019184,2]
[387740409,1758834647102,-151.0,0.00019184,2]
[387740411,1758834647111,-151.0,0.00019184,2]
[387740413,1758834647120,-151.0,0.00019184,2]
[387740415,1758834647130,-151.0,0.00019184,2]
[387740417,1758834647139,-151.0,0.00019184,2]
[387740419,1758834647148,-500.0,0.00019184,2]
[387740420,1758834647157,-500.0,0.00019184,2]
[387740422,1758834647167,-151.0,0.00019184,2]
[387740424,1758834647176,-151.30661811,0.00019184,2]
[387740427,1758834647185,-500.0,0.00019184,2]
[387740428,1758834647195,-500.0,0.00019184,2]
[387740430,1758834647206,-151.0,0.00019184,2]
[387740433,1758834647215,-151.0,0.00019184,2]
[387740435,1758834647224,-151.0,0.00019184,2]
[387740437,1758834647234,-151.0,0.00019184,2]
[387740439,1758834647243,-158.04961289,0.00019184,2]
[387740440,1758834647252,-151.18199785,0.00019184,2]
[387740443,1758834647261,-151.0,0.00019184,2]
[387740445,1758834647271,-151.0,0.00019184,2]
[387740447,1758834647282,-6725.05392006,0.00019273,2]
[387740449,1758834647291,-1681.99209877,0.00019273,2]
[387740451,1758834647300,-2130.93402607,0.0001934,2]
[387740453,1758834647310,-179.77,0.00019341,3]
[387740455,1758834647319,-539.35,0.00019341,3]
[387740457,1758834647328,-494.82842668,0.00019351,2]
[387740459,1758834647337,-370000.0,0.00019352,2]
[387740461,1758834647347,-480.0,0.00019452,2]
[387740463,1758834647356,-493.38614093,0.00019452,2]
[387740465,1758834647365,-480.0,0.00019452,2]
[387740467,1758834647375,-480.0,0.00019452,2]
[387740469,1758834647384,-480.0,0.00019452,2]
[387740471,1758834647394,-480.0,0.00019452,2]
[387740473,1758834647403,-480.0,0.00019452,2]
[387740475,1758834647412,-480.0,0.00019452,2]
[387740477,1758834647422,-232.92207608,0.00019452,2]
[387740479,1758834647432,-181.95692779,0.00019452,2]
[387740481,1758834647441,-480.0,0.00019452,2]
[387740483,1758834647451,-480.0,0.00019452,2]
[387740485,1758834647460,-480.0,0.00019452,2]
[387740487,1758834647469,-480.0,0.00019452,2]
[387740489,1758834647478,-480.0,0.00019452,2]
[387740491,1758834647487,-480.0,0.00019452,2]
[387740493,1758834647496,-480.0,0.00019452,2]
[387740495,1758834647505,-281.25504258,0.00019452,2]
[387740497,1758834647515,-4824.96,0.00019452,2]
[387740499,1758834647524,-608.45,0.00019452,2]
[387740501,1758834647534,-648.52,0.00019452,2]
[387740503,1758834647544,-493.22,0.00019452,2]
[387740505,1758834647553,-545.88,0.00019452,2]
[387740507,1758834647563,-480.0,0.00019452,2]
[387740509,1758834647572,-480.0,0.00019452,2]
[387740511,1758834647581,-905.45,0.00019452,2]
[387740513,1758834647591,-1188.85,0.00019452,2]
[387740515,1758834647601,-480.0,0.00019452,2]
[387740517,1758834647610,-480.0,0.00019452,2]
[387740519,1758834647620,-480.0,0.00019452,2]
[387740521,1758834647630,-520.0,0.00019452,2]
[387740523,1758834647640,-480.0,0.00019452,2]
[387740525,1758834647650,-480.0,0.00019452,2]
[387740527,1758834647659,-584.98,0.00019452,2]
[387740529,1758834647668,-480.0,0.00019452,2]
[387740531,1758834647678,-584.77,0.00019452,2]
[387740533,1758834647687,-2838.47,0.00019452,2]
[387740535,1758834647697,-480.0,0.00019452,2]
[387740537,1758834647709,-480.0,0.00019452,2]
[387740539,1758834647719,-483.51,0.00019452,2]
[387740541,1758834647728,-480.0,0.00019452,2]
[387740543,1758834647737,-480.0,0.00019452,2]
[387740545,1758834647746,-480.0,0.00019452,2]
[387740547,1758834647755,-502.89,0.00019452,2]
[387740549,1758834647764,-480.0,0.00019452,2]
[387740551,1758834647774,-480.0,0.00019452,2]
[387740553,1758834647783,-480.0,0.00019452,2]
[387740555,1758834647792,-555.71,0.00019452,2]
[387740557,1758834647802,-480.0,0.00019452,2]
[387740559,1758834647811,-1055.55,0.00019452,2]
[387740561,1758834647820,-480.0,0.00019452,2]
[387740563,1758834647830,-495.0,0.00019452,2]
[387740565,1758834647839,-480.0,0.00019452,2]
[387740567,1758834647848,-865.24,0.00019452,2]
[387740569,1758834647858,-480.0,0.00019452,2]
[387740571,1758834647867,-480.0,0.00019452,2]
[387740573,1758834647877,-480.0,0.00019452,2]
[387740575,1758834647887,-480.0,0.00019452,2]
[387740577,1758834647896,-480.0,0.00019452,2]
[387740579,1758834647905,-480.0,0.00019452,2]
[387740581,1758834647914,-480.0,0.00019452,2]
[387740584,1758834647923,-480.0,0.00019452,2]
[387740586,1758834647932,-1304.97,0.00019452,2]
[387740588,1758834647942,-480.0,0.00019452,2]
[387740590,1758834647955,-590.27,0.00019452,2]
[387740592,1758834647964,-468.96402474,0.00019452,2]
[387740594,1758834647973,-480.0,0.00019452,2]
[387740596,1758834647982,-567.0,0.00019452,2]
[387740598,1758834647991,-480.0,0.00019452,2]
[387740600,1758834648000,-480.0,0.00019452,2]
[387740602,1758834648010,-844.46,0.00019452,2]
[387740604,1758834648020,-480.0,0.00019453,2]
[387740606,1758834648029,-222.53119266,0.00019453,2]
[387740608,1758834648039,-480.0,0.00019453,2]
[387740610,1758834648049,-668.28,0.00019453,2]
[387740612,1758834648058,-480.0,0.00019453,2]
[387740614,1758834648067,-480.0,0.00019453,2]
[387740616,1758834648077,-757.73,0.00019453,2]
[387740618,1758834648086,-518.39,0.00019453,2]
[387740619,1758834648095,-480.0,0.00019453,2]
[387740620,1758834648104,-1280.01,0.00019453,2]
[387740621,1758834648114,-480.0,0.00019453,2]
[387740622,1758834648123,-480.0,0.00019453,2]
[387740623,1758834648132,-1202.42,0.00019453,2]
[387740624,1758834648141,-480.0,0.00019453,2]
[387740625,1758834648150,-480.0,0.00019453,2]
[387740626,1758834648159,-2857.31,0.00019453,2]
[387740627,1758834648168,-493.22,0.00019453,2]
[387740628,1758834648178,-480.0,0.00019453,2]
[387740629,1758834648187,-1512.63,0.00019453,2]
[387740630,1758834648197,-480.0,0.00019453,2]
[387740631,1758834648207,-480.0,0.00019453,2]
[387740632,1758834648217,-2411.58,0.00019453,2]
[387740633,1758834648226,-480.0,0.00019453,2]
[387740634,1758834648235,-260.19923329,0.00019454,2]
[387740635,1758834648245,-480.0,0.00019454,2]
[387740636,1758834648254,-586.79188805,0.00019454,2]
[387740637,1758834648263,-428.85487214,0.00019454,2]
[387740638,1758834648273,-480.0,0.00019454,2]
[387740639,1758834648282,-480.0,0.00019454,2]
[387740640,1758834648292,-151.0,0.00019454,2]
[387740641,1758834648301,-480.0,0.00019454,2]
[387740642,1758834648311,-480.0,0.00019454,2]
[387740643,1758834648320,-480.0,0.00019454,2]
[387740644,1758834648329,-1502.1,0.00019454,2]
[387740645,1758834648338,-480.0,0.00019454,2]
[387740646,1758834648347,-480.0,0.00019454,2]
[387740647,1758834648357,-336.26840041,0.00019454,2]
[387740648,1758834648367,-289.32194646,0.00019454,2]
[387740649,1758834648376,-556.46029798,0.00019454,2]
[387740650,1758834648386,-480.0,0.00019454,2]
[387740651,1758834648395,-480.0,0.00019454,2]
[387740652,1758834648405,-480.0,0.00019454,2]
[387740653,1758834648414,-480.0,0.00019454,2]
[387740654,1758834648424,-480.0,0.00019454,2]
[387740655,1758834648434,-4525.77,0.00019454,2]
[387740656,1758834648444,-820.61,0.00019454,2]
[387740657,1758834648456,-480.0,0.00019455,2]
[387740658,1758834648465,-480.0,0.00019455,2]
[387740659,1758834648475,-480.0,0.00019455,2]
[387740660,1758834648484,-341.2131605,0.00019455,2]
[387740661,1758834648494,-480.0,0.00019455,2]
[387740662,1758834648504,-530.59,0.00019455,2]
[387740663,1758834648514,-480.0,0.00019455,2]
[387740664,1758834648525,-545.65,0.00019455,2]
[387740665,1758834648535,-2085.25,0.00019455,2]
[387740666,1758834648545,-1208.18,0.00019455,2]
[387740667,1758834648554,-480.0,0.00019455,2]
[387740668,1758834648564,-1052.91,0.00019456,2]
[387740669,1758834648573,-480.0,0.00019456,2]
[387740670,1758834648582,-500.0,0.00019457,2]
[387740671,1758834648591,-10122.8957675,0.00019457,2]
[387740672,1758834648599,-421.33394579,0.00019457,2]
[387740673,1758834648609,-1683.65044737,0.00019457,2]
[387740674,1758834648617,-294.05241869,0.00019458,2]
[387740675,1758834648627,-500.0,0.00019458,2]
[387740676,1758834648636,-644.69141765,0.00019458,2]
[387740683,1758834648726,-151.0,0.00019458,2]
[387740685,1758834648736,-237.33584899,0.00019458,2]
[387740687,1758834648747,-151.0,0.00019458,2]
[387740689,1758834648756,-151.0,0.00019458,2]
[387740691,1758834648766,-151.0,0.00019458,2]
[387740693,1758834648776,-168.0,0.00019551,2]
[387740694,1758834648785,-1681.99209875,0.00019567,2]
[387740695,1758834648795,-168.0,0.00019581,2]
[387740696,1758834648804,-168.0,0.00019589,2]
[387740697,1758834648813,-542.95528756,0.0001959,2]
[387740698,1758834648823,-637.0,0.00019591,2]
[387740699,1758834648833,-390.4368942,0.000196,2]
[387740701,1758834648842,-390.4368942,0.000196,2]
[387740703,1758834648851,-390.4368942,0.000196,2]
[387740705,1758834648861,-390.4368942,0.000196,2]
[387740707,1758834648872,-627.1480058,0.000196,2]
[387740709,1758834648881,-168.0,0.00019659,2]
[387740710,1758834648891,-390.4368942,0.000197,2]
[387740711,1758834648901,-480.0,0.00019726,2]
[387740712,1758834648911,-500.56870023,0.00019726,2]
[387740713,1758834648921,-480.0,0.00019726,2]
[387740714,1758834648931,-480.0,0.00019726,2]
[387740715,1758834648941,-480.0,0.00019726,2]
[387740716,1758834648952,-269.93470926,0.00019726,2]
[387740717,1758834648962,-480.0,0.00019726,2]
[387740718,1758834648972,-480.0,0.00019726,2]
[387740719,1758834648982,-480.0,0.00019726,2]
[387740720,1758834648992,-480.0,0.00019726,2]
[387740721,1758834649002,-480.0,0.00019726,2]
[387740722,1758834649011,-480.0,0.00019726,2]
[387740723,1758834649021,-480.0,0.00019726,2]
[387740724,1758834649031,-480.0,0.00019726,2]
[387740725,1758834649041,-4824.96,0.00019726,2]
[387740726,1758834649051,-608.45,0.00019726,2]
[387740727,1758834649060,-648.52,0.00019726,2]
[387740728,1758834649070,-493.22,0.00019726,2]
[387740729,1758834649080,-545.88,0.00019726,2]
[387740730,1758834649090,-480.0,0.00019726,2]
[387740731,1758834649100,-480.0,0.00019726,2]
[387740732,1758834649110,-905.45,0.00019726,2]
[387740733,1758834649120,-1188.85,0.00019726,2]
[387740734,1758834649129,-480.0,0.00019726,2]
[387740735,1758834649139,-480.0,0.00019726,2]
[387740736,1758834649149,-480.0,0.00019726,2]
[387740737,1758834649160,-480.0,0.00019726,2]
[387740738,1758834649170,-480.0,0.00019726,2]
[387740739,1758834649180,-584.98,0.00019726,2]
[387740740,1758834649190,-480.0,0.00019726,2]
[387740741,1758834649202,-584.77,0.00019726,2]
[387740742,1758834649212,-2838.47,0.00019726,2]
[387740743,1758834649222,-480.0,0.00019726,2]
[387740744,1758834649232,-483.51,0.00019726,2]
[387740745,1758834649242,-480.0,0.00019726,2]
[387740746,1758834649252,-480.0,0.00019726,2]
[387740747,1758834649262,-480.0,0.00019726,2]
[387740748,1758834649272,-502.89,0.00019726,2]
[387740749,1758834649282,-480.0,0.00019726,2]
[387740750,1758834649292,-480.0,0.00019726,2]
[387740751,1758834649301,-555.71,0.00019726,2]
[387740752,1758834649310,-480.0,0.00019726,2]
[387740753,1758834649320,-1055.55,0.00019726,2]
[387740754,1758834649330,-480.0,0.00019726,2]
[387740755,1758834649339,-495.0,0.00019726,2]
[387740756,1758834649348,-480.0,0.00019726,2]
[387740757,1758834649357,-865.24,0.00019726,2]
[387740758,1758834649367,-480.0,0.00019726,2]
[387740759,1758834649376,-480.0,0.00019726,2]
[387740760,1758834649386,-540.0,0.00019726,2]
[387740761,1758834649395,-480.0,0.00019726,2]
[387740762,1758834649405,-480.0,0.00019726,2]
[387740763,1758834649414,-480.0,0.00019726,2]
[387740764,1758834649424,-1304.97,0.00019726,2]
[387740765,1758834649433,-480.0,0.00019726,2]
[387740766,1758834649443,-590.27,0.00019726,2]
[387740767,1758834649453,-480.0,0.00019726,2]
[387740768,1758834649465,-567.0,0.00019726,2]
[387740769,1758834649475,-480.0,0.00019726,2]
[387740770,1758834649485,-480.0,0.00019726,2]
[387740771,1758834649494,-480.0,0.00019727,2]
[387740772,1758834649504,-519.66220478,0.00019727,2]
[387740773,1758834649513,-668.28,0.00019727,2]
[387740774,1758834649524,-480.0,0.00019727,2]
[387740775,1758834649533,-757.73,0.00019727,2]
[387740776,1758834649543,-518.39,0.00019727,2]
[387740777,1758834649552,-609.20612596,0.00019727,2]
[387740778,1758834649562,-1280.01,0.00019727,2]
[387740779,1758834649571,-480.0,0.00019727,2]
[387740780,1758834649581,-480.0,0.00019727,2]
[387740781,1758834649590,-1202.42,0.00019727,2]
[387740782,1758834649599,-480.0,0.00019727,2]
[387740783,1758834649609,-480.0,0.00019727,2]
[387740784,1758834649619,-2857.31,0.00019727,2]
[387740785,1758834649630,-493.22,0.00019727,2]
[387740786,1758834649639,-480.0,0.00019727,2]
[387740787,1758834649649,-1512.63,0.00019727,2]
[387740788,1758834649658,-247.51359509,0.00019727,2]
[387740789,1758834649668,-480.0,0.00019727,2]
[387740790,1758834649677,-2411.58,0.00019727,2]
[387740791,1758834649687,-480.0,0.00019727,2]
[387740792,1758834649699,-151.0,0.00019728,2]
[387740793,1758834649710,-480.0,0.00019728,2]